bitfinex-derivatives/quotes_BTCF0:USTF0_20250315
["timestamp","ask_amount","ask_price","bid_price","bid_amount"]
[1742007099493,0.2170918,84535.0,84534.0,0.2032617]
[1742007099688,0.3270918,84535.0,84534.0,0.0849685]
[1742007099888,0.2170918,84535.0,84534.0,0.0849685]
[1742007100394,0.3270918,84535.0,84534.0,0.0849685]
[1742007100987,0.2949918,84535.0,84534.0,0.2032617]
[1742007101897,0.6557918,84535.0,84534.0,0.2032617]
[1742007102099,0.2949918,84535.0,84534.0,0.2032617]
[1742007102593,0.2949918,84535.0,84534.0,0.0849685]
[1742007102985,0.2949918,84535.0,84534.0,0.2032617]
[1742007104001,0.2949918,84535.0,84534.0,0.0849685]
[1742007106385,0.3255918,84535.0,84534.0,0.0849685]
[1742007110197,0.3255918,84535.0,84534.0,0.08319424]
[1742007110602,0.2949918,84535.0,84534.0,0.08319424]
[1742007119413,0.2949918,84535.0,84534.0,0.0631]
[1742007119608,0.118296,84532.0,84531.0,0.00017743]
[1742007119910,0.118296,84532.0,84531.0,0.01970949]
[1742007120205,0.181896,84532.0,84531.0,0.01970949]
[1742007121006,0.184896,84532.0,84531.0,0.01970949]
[1742007121607,0.151696,84532.0,84531.0,0.18800689]
[1742007121808,0.235816,84532.0,84531.0,0.18800689]
[1742007122812,0.003,84532.0,84531.0,0.18800689]
[1742007123017,0.118292,84536.0,84535.0,0.1182918]
[1742007123419,0.118292,84536.0,84535.0,0.3982918]
[1742007123605,0.11452,84539.0,84538.0,0.1182876]
[1742007123804,0.2328062,84539.0,84538.0,0.7490876]
[1742007124216,0.2328062,84539.0,84538.0,0.7590876]
[1742007124415,0.2328062,84539.0,84538.0,0.7921876]
[1742007124716,0.2328062,84539.0,84538.0,0.5721876]
[1742007124917,0.1182862,84539.0,84538.0,0.8321876]
[1742007125117,0.1182862,84539.0,84538.0,0.5721876]
[1742007125331,0.1182862,84539.0,84538.0,0.7421876]
[1742007125518,0.1182862,84539.0,84538.0,0.7821876]
[1742007125714,0.1182862,84539.0,84538.0,0.7721876]
[1742007126021,0.1192862,84539.0,84538.0,1.2221876]
[1742007126208,0.1192862,84539.0,84538.0,1.2521876]
[1742007126404,0.1192862,84539.0,84538.0,1.0621876]
[1742007126609,0.1192862,84539.0,84538.0,1.3021876]
[1742007126804,0.1182862,84539.0,84538.0,1.3041876]
[1742007127117,0.1182862,84539.0,84538.0,1.3141876]
[1742007127304,0.1182862,84539.0,84538.0,0.5141876]
[1742007127506,0.1182862,84539.0,84538.0,1.3141876]
[1742007127815,0.1182862,84539.0,84538.0,0.5131876]
[1742007128119,0.1182862,84539.0,84538.0,0.5141876]
[1742007128319,0.1182862,84539.0,84538.0,0.7741876]
[1742007128523,0.1182862,84539.0,84538.0,0.5141876]
[1742007128721,0.1182862,84539.0,84538.0,1.3545876]
[1742007128916,0.1182862,84539.0,84538.0,0.5445876]
[1742007129107,0.1182862,84539.0,84538.0,1.2945876]
[1742007129512,0.1182862,84539.0,84538.0,1.2935876]
[1742007129915,0.1182862,84539.0,84538.0,0.5435876]
[1742007130111,0.1774229,84543.0,84542.0,0.118282]
[1742007130329,0.0332,84544.0,84542.0,0.868282]
[1742007130517,0.00085743,84548.0,84547.0,0.118275]
[1742007130717,0.00017743,84548.0,84547.0,1.279075]
[1742007131219,0.00017743,84548.0,84547.0,1.259075]
[1742007131418,0.00017743,84548.0,84547.0,1.279075]
[1742007131622,0.00017743,84548.0,84547.0,0.759075]
[1742007131825,0.00017743,84548.0,84547.0,1.239075]
[1742007132423,0.00017743,84548.0,84547.0,1.269075]
[1742007132719,0.00017743,84548.0,84547.0,1.279075]
[1742007132916,0.00017743,84548.0,84547.0,1.269075]
[1742007133119,0.00117743,84548.0,84547.0,1.269075]
[1742007133320,0.00117743,84548.0,84547.0,1.279075]
[1742007133718,0.00117743,84548.0,84547.0,1.039075]
[1742007134022,0.00117743,84548.0,84547.0,1.229075]
[1742007134224,0.00117743,84548.0,84547.0,1.279075]
[1742007134522,0.00117743,84548.0,84547.0,1.269075]
[1742007135316,0.00117743,84548.0,84547.0,0.759075]
[1742007135513,0.00117743,84548.0,84547.0,1.259075]
[1742007135909,0.00117743,84548.0,84547.0,1.239075]
[1742007136216,0.00117743,84548.0,84547.0,1.059075]
[1742007136621,0.00117743,84548.0,84547.0,1.199075]
[1742007136920,0.00117743,84548.0,84547.0,0.939075]
[1742007137221,0.00117743,84548.0,84547.0,0.759075]
[1742007137520,0.11945103,84548.0,84547.0,1.289075]
[1742007137718,0.00117743,84548.0,84547.0,1.249075]
[1742007138024,0.00117743,84548.0,84547.0,0.759075]
[1742007138228,0.00117743,84548.0,84547.0,1.239075]
[1742007139115,0.00117743,84548.0,84547.0,1.249075]
[1742007139322,0.00117743,84548.0,84547.0,1.269075]
[1742007139522,0.03437743,84548.0,84547.0,0.759075]
[1742007140625,0.15265103,84548.0,84547.0,0.759075]
[1742007141129,0.18345103,84548.0,84547.0,1.239075]
[1742007141326,0.18345103,84548.0,84547.0,0.759075]
[1742007141510,0.18345103,84548.0,84547.0,1.039075]
[1742007141718,0.06517743,84548.0,84547.0,1.269075]
[1742007142232,0.06517743,84548.0,84547.0,1.289075]
[1742007142523,0.18345103,84548.0,84547.0,0.759075]
[1742007142721,0.18345103,84548.0,84547.0,1.249075]
[1742007143230,0.18345103,84548.0,84547.0,0.759075]
[1742007144820,0.18345103,84548.0,84547.0,1.269075]
[1742007145237,0.06517743,84548.0,84547.0,0.759075]
[1742007145528,0.06517743,84548.0,84547.0,1.279075]
[1742007145830,0.06517743,84548.0,84547.0,1.259075]
[1742007146216,0.06517743,84548.0,84547.0,1.249075]
[1742007146419,0.00117743,84548.0,84547.0,0.910275]
[1742007146630,0.00117743,84548.0,84547.0,1.120275]
[1742007147028,0.3608,84564.0,84547.0,1.002]
[1742007147233,0.3608,84564.0,84562.0,0.118254]
[1742007147234,0.1799534,84563.0,84562.0,0.118254]
[1742007147428,0.0617,84563.0,84562.0,0.778254]
[1742007147733,0.0617,84563.0,84562.0,0.768254]
[1742007149130,0.0617,84563.0,84562.0,0.258254]
[1742007149330,0.0617,84563.0,84562.0,0.498254]
[1742007149331,0.0304,84563.0,84562.0,0.498254]
[1742007149525,0.0317,84568.0,84567.0,0.118247]
[1742007149738,0.0317,84568.0,84567.0,1.099047]
[1742007149926,0.0317,84568.0,84567.0,1.169047]
[1742007150121,0.0317,84568.0,84567.0,1.099047]
[1742007150432,0.0317,84568.0,84567.0,0.609047]
[1742007150632,0.0317,84568.0,84567.0,1.099047]
[1742007150825,0.0317,84568.0,84567.0,0.609047]
[1742007151137,0.0317,84568.0,84567.0,0.899047]
[1742007151317,0.0337,84568.0,84567.0,0.899047]
[1742007151634,0.0337,84568.0,84567.0,1.099047]
[1742007151933,0.0337,84568.0,84567.0,1.089047]
[1742007152230,0.0337,84568.0,84567.0,1.119047]
[1742007152532,0.0337,84568.0,84567.0,1.089047]
[1742007153124,0.0337,84568.0,84567.0,0.62738495]
[1742007153327,0.0337,84568.0,84567.0,1.17738495]
[1742007153924,0.0337,84568.0,84567.0,1.10738495]
[1742007154725,0.0337,84568.0,84567.0,1.11738495]
[1742007154932,0.0337,84568.0,84567.0,0.62738495]
[1742007155122,0.0337,84568.0,84567.0,1.12738495]
[1742007155429,0.0337,84568.0,84567.0,0.89738495]
[1742007155640,0.0337,84568.0,84567.0,1.09738495]
[1742007156328,0.0337,84568.0,84567.0,0.62738495]
[1742007156528,0.0337,84568.0,84567.0,1.10738495]
[1742007157226,0.0337,84568.0,84567.0,1.14738495]
[1742007157429,0.0337,84568.0,84567.0,0.62738495]
[1742007157629,0.0337,84568.0,84567.0,1.09738495]
[1742007158226,0.002,84568.0,84567.0,1.10738495]
[1742007158538,0.0312,84575.0,84574.0,0.1182372]
[1742007158837,0.0312,84575.0,84574.0,1.2490372]
[1742007159228,0.0312,84575.0,84574.0,0.7090372]
[1742007159541,0.0312,84575.0,84574.0,1.2290372]
[1742007159835,0.0312,84575.0,84574.0,1.1890372]
[1742007160230,0.0312,84575.0,84574.0,1.1990372]
[1742007160430,0.0312,84575.0,84574.0,0.9590372]
[1742007160631,0.0322,84575.0,84574.0,1.1990372]
[1742007160833,0.0322,84575.0,84574.0,0.9790372]
[1742007161034,0.0322,84575.0,84574.0,1.2190372]
[1742007161337,0.0322,84575.0,84574.0,0.7090372]
[1742007161540,0.0322,84575.0,84574.0,1.2390372]
[1742007162037,0.0322,84575.0,84574.0,1.2090372]
[1742007162846,0.0322,84575.0,84574.0,1.1890372]
[1742007163441,0.0322,84575.0,84574.0,0.7090372]
[1742007163736,0.0322,84575.0,84574.0,1.2590372]
[1742007163936,0.0322,84575.0,84574.0,1.2090372]
[1742007164238,0.0322,84575.0,84574.0,0.9690372]
[1742007164441,0.0322,84575.0,84574.0,0.7090372]
[1742007165140,0.0322,84575.0,84574.0,0.9790372]
[1742007165439,0.0322,84575.0,84574.0,0.7090372]
[1742007165837,0.0322,84575.0,84574.0,0.9390372]
[1742007166040,0.0322,84575.0,84574.0,1.2190372]
[1742007166542,0.0322,84575.0,84574.0,1.2894372]
[1742007166735,0.0322,84575.0,84574.0,0.7394372]
[1742007166934,0.0322,84575.0,84574.0,1.2294372]
[1742007167333,0.0322,84575.0,84574.0,1.2894372]
[1742007167534,0.0322,84575.0,84574.0,1.2594372]
[1742007167734,0.0322,84575.0,84574.0,1.2796372]
[1742007168232,0.0322,84575.0,84574.0,1.2496372]
[1742007168440,0.0322,84575.0,84574.0,1.2796372]
[1742007169142,0.0322,84575.0,84574.0,1.2696372]
[1742007169341,0.0322,84575.0,84574.0,1.0296372]
[1742007169534,0.0322,84575.0,84574.0,1.2596372]
[1742007170034,0.0322,84575.0,84574.0,1.2796372]
[1742007170362,0.0322,84575.0,84574.0,1.2996372]
[1742007170544,0.0322,84575.0,84574.0,1.0296372]
[1742007170842,0.0322,84575.0,84574.0,1.2796372]
[1742007171034,0.0322,84575.0,84574.0,0.9996372]
[1742007171232,0.0322,84575.0,84574.0,0.7696372]
[1742007171646,0.0322,84575.0,84574.0,1.0496372]
[1742007171837,0.0322,84575.0,84574.0,0.7696372]
[1742007172039,0.0322,84575.0,84574.0,1.0296372]
[1742007172440,0.0322,84575.0,84574.0,0.7696372]
[1742007172946,0.0322,84575.0,84574.0,1.0196372]
[1742007173843,0.0322,84575.0,84574.0,1.0496372]
[1742007174042,0.0322,84575.0,84574.0,0.7696372]
[1742007174640,0.0322,84575.0,84574.0,1.0096372]
[1742007174841,0.0322,84575.0,84574.0,0.7696372]
[1742007175852,0.0322,84575.0,84574.0,1.2496372]
[1742007176052,0.0322,84575.0,84574.0,0.7696372]
[1742007176253,0.0322,84575.0,84574.0,1.0196372]
[1742007177055,0.0322,84575.0,84574.0,1.2796372]
[1742007177449,0.0322,84575.0,84574.0,1.2596372]
[1742007177651,0.0322,84575.0,84574.0,1.3096372]
[1742007178051,0.0322,84575.0,84574.0,0.7696372]
[1742007178253,0.0322,84575.0,84574.0,1.2696372]
[1742007178446,0.0322,84575.0,84574.0,0.7696372]
[1742007178646,0.0322,84575.0,84574.0,1.0496372]
[1742007178846,0.0322,84575.0,84574.0,1.2996372]
[1742007179055,0.0322,84575.0,84574.0,1.0496372]
[1742007179350,0.0322,84575.0,84574.0,1.0396372]
[1742007179554,0.0322,84575.0,84574.0,0.7696372]
[1742007182143,0.0322,84575.0,84574.0,1.2616372]
[1742007182341,0.0312,84575.0,84574.0,1.2636372]
[1742007182549,0.0312,84575.0,84574.0,0.7736372]
[1742007184559,0.0312,84575.0,84574.0,1.0136372]
[1742007184758,0.0312,84575.0,84574.0,0.7736372]
[1742007185459,0.0312,84575.0,84574.0,1.2836372]
[1742007185659,0.0312,84575.0,84574.0,0.7736372]
[1742007185962,0.0312,84575.0,84574.0,1.2336372]
[1742007186257,0.0312,84575.0,84574.0,0.7736372]
[1742007186451,0.0312,84575.0,84574.0,1.2936372]
[1742007186861,0.0312,84575.0,84574.0,1.2836372]
[1742007187660,0.0312,84575.0,84574.0,1.2736372]
[1742007188158,0.0312,84575.0,84574.0,1.30697413]
[1742007188361,0.0332,84581.0,84580.0,0.1182288]
[1742007188556,0.0332,84581.0,84580.0,0.6082288]
[1742007188765,0.0332,84581.0,84580.0,0.8682288]
[1742007189150,0.0332,84581.0,84580.0,0.9336288]
[1742007189351,0.0332,84581.0,84580.0,0.6736288]
[1742007189763,0.0332,84581.0,84580.0,0.9336288]
[1742007189968,0.11448,84590.0,84589.0,0.1182163]
[1742007190160,0.11448,84590.0,84589.0,0.7390163]
[1742007190549,0.11448,84590.0,84589.0,0.49757948]
[1742007190749,0.11448,84590.0,84589.0,0.80027948]
[1742007190955,0.2326949,84590.0,84589.0,0.56137948]
[1742007191159,0.11448,84590.0,84589.0,0.81027948]
[1742007191660,0.17698,84590.0,84589.0,0.53027948]
[1742007192357,0.17698,84590.0,84589.0,0.77027948]
[1742007192557,0.1807149,84590.0,84589.0,0.77027948]
[1742007192757,0.0625,84590.0,84589.0,0.53027948]
[1742007193467,0.0625,84590.0,84589.0,0.77027948]
[1742007193662,0.0625,84590.0,84589.0,1.06207948]
[1742007193869,0.0625,84590.0,84589.0,0.53027948]
[1742007194070,0.0625,84590.0,84589.0,0.78027948]
[1742007194252,0.1807149,84590.0,84589.0,0.53027948]
[1742007194452,0.1807149,84590.0,84589.0,0.01856318]
[1742007194453,0.4207149,84590.0,84589.0,0.01856318]
[1742007194659,0.0591093,84589.0,84588.0,0.3608]
[1742007194963,0.17733,84588.0,84587.0,0.1182188]
[1742007195157,0.24063,84588.0,84587.0,0.1182188]
[1742007195760,0.1182205,84587.0,84586.0,0.1182195]
[1742007196268,0.1815205,84587.0,84586.0,0.4790195]
[1742007196470,0.0633,84587.0,84586.0,0.73699405]
[1742007196764,0.0633,84587.0,84586.0,0.79909405]
[1742007196967,0.0633,84587.0,84586.0,0.55909405]
[1742007197358,0.0633,84587.0,84586.0,0.57237024]
[1742007198165,0.0633,84587.0,84586.0,0.80337024]
[1742007198760,0.0633,84587.0,84586.0,0.85337024]
[1742007199268,0.0633,84587.0,84586.0,0.57437024]
[1742007199463,0.0633,84587.0,84586.0,0.83437024]
[1742007199956,0.0633,84587.0,84586.0,0.85437024]
[1742007200161,0.0633,84587.0,84586.0,1.08437024]
[1742007200771,0.0633,84587.0,84586.0,0.84437024]
[1742007201272,0.0633,84587.0,84586.0,0.57437024]
[1742007201470,0.0633,84587.0,84586.0,0.84337024]
[1742007201670,0.0633,84587.0,84586.0,0.84437024]
[1742007202371,0.0633,84587.0,84586.0,0.84337024]
[1742007202561,0.0633,84587.0,84586.0,0.84437024]
[1742007202762,0.0633,84587.0,84586.0,1.10437024]
[1742007202957,0.0633,84587.0,84586.0,0.84437024]
[1742007203463,0.0633,84587.0,84586.0,0.83109405]
[1742007203772,0.0633,84587.0,84586.0,1.09109405]
[1742007203966,0.0633,84587.0,84586.0,0.83109405]
[1742007204856,0.0633,84587.0,84586.0,1.11109405]
[1742007205271,0.0633,84587.0,84586.0,0.83109405]
[1742007207174,0.1815191,84587.0,84586.0,0.05037455]
[1742007207477,0.1815191,84587.0,84586.0,0.01997455]
[1742007207879,0.1815191,84587.0,84586.0,0.13819505]
[1742007208167,0.0633,84587.0,84586.0,0.13819505]
[1742007208371,0.0633,84587.0,84586.0,0.16939505]
[1742007208569,0.0643,84587.0,84586.0,0.45069505]
[1742007208772,0.0643,84587.0,84586.0,0.20069505]
[1742007209069,0.0643,84587.0,84586.0,0.52969505]
[1742007209277,0.0643,84587.0,84586.0,0.24969505]
[1742007209972,0.0338,84587.0,84586.0,0.24969505]
[1742007211064,0.0338,84587.0,84586.0,0.51969505]
[1742007211260,0.001,84587.0,84586.0,0.51969505]
[1742007211573,0.001,84587.0,84586.0,0.78303189]
[1742007211971,0.0633,84593.0,84592.0,0.1182121]
[1742007212169,0.0633,84593.0,84592.0,0.7490121]
[1742007212377,0.0633,84593.0,84592.0,0.4790121]
[1742007212776,0.0633,84593.0,84592.0,0.5779121]
[1742007213572,0.0633,84593.0,84592.0,0.8079121]
[1742007213967,0.0633,84593.0,84592.0,0.8679121]
[1742007214272,0.0633,84593.0,84592.0,0.5779121]
[1742007214479,0.25431602,84650.0,84592.0,0.8797]
[1742007214480,0.00060001,84607.0,84592.0,0.8797]
[1742007214681,0.24633737,84624.0,84623.0,0.1181688]
[1742007214976,0.58537877,84624.0,84623.0,0.1181688]
[1742007215184,0.1181722,84622.0,84621.0,0.1181688]
[1742007215473,0.24784927,84624.0,84621.0,0.1494688]
[1742007215677,0.1181688,84623.0,84622.0,0.0316]
[1742007215977,0.1181688,84623.0,84622.0,0.0485448]
[1742007216167,0.1181688,84623.0,84622.0,0.166715]
[1742007216374,0.2374488,84623.0,84622.0,0.1814702]
[1742007217067,0.2376088,84623.0,84622.0,0.1814702]
[1742007217468,0.2386088,84623.0,84622.0,0.1814702]
[1742007217669,0.2386088,84623.0,84622.0,0.19863343]
[1742007218275,0.5508088,84623.0,84622.0,0.0633]
[1742007218572,0.3008088,84623.0,84622.0,0.0633]
[1742007218777,0.3008088,84623.0,84622.0,0.1814702]
[1742007218967,0.2913688,84623.0,84622.0,0.1814702]
[1742007219372,0.1813688,84623.0,84622.0,0.1814702]
[1742007219568,0.4413688,84623.0,84622.0,0.1814702]
[1742007219770,0.1813688,84623.0,84622.0,0.1814702]
[1742007220376,0.1813688,84623.0,84622.0,0.19870963]
[1742007221185,0.1813688,84623.0,84622.0,0.08053943]
[1742007221686,0.2813688,84623.0,84622.0,0.08053943]
[1742007221881,0.1813688,84623.0,84622.0,0.08053943]
[1742007222189,0.2813688,84623.0,84622.0,0.08053943]
[1742007222387,0.4513688,84623.0,84622.0,0.08053943]
[1742007222591,0.3004488,84623.0,84622.0,0.08053943]
[1742007222779,0.5404488,84623.0,84622.0,0.08053943]
[1742007222983,0.5804488,84623.0,84622.0,0.08053943]
[1742007223187,0.3004488,84623.0,84622.0,0.08053943]
[1742007223387,0.4004488,84623.0,84622.0,0.08053943]
[1742007223588,0.5604488,84623.0,84622.0,0.08053943]
[1742007223793,0.3004488,84623.0,84622.0,0.08053943]
[1742007224097,0.4004488,84623.0,84622.0,0.08053943]
[1742007224399,0.3004488,84623.0,84622.0,0.08053943]
[1742007224598,0.4104488,84623.0,84622.0,0.08053943]
[1742007224892,0.3004488,84623.0,84622.0,0.08053943]
[1742007225100,0.5704488,84623.0,84622.0,0.08053943]
[1742007225293,0.3004488,84623.0,84622.0,0.08053943]
[1742007226595,0.9012488,84623.0,84622.0,0.08053943]
[1742007226789,0.5704488,84623.0,84622.0,0.08053943]
[1742007226990,0.6612488,84623.0,84622.0,0.08053943]
[1742007227295,0.4004488,84623.0,84622.0,0.08053943]
[1742007227488,0.1813688,84623.0,84622.0,0.08053943]
[1742007227688,0.3002488,84623.0,84622.0,0.08053943]
[1742007228092,0.5602488,84623.0,84622.0,0.0317]
[1742007228295,0.1181771,84617.0,84616.0,0.0307]
[1742007228586,0.3881771,84617.0,84616.0,0.0307]
[1742007228901,0.1181785,84616.0,84615.0,0.00017732]
[1742007229094,0.46835521,84616.0,84615.0,0.00017732]
[1742007229290,0.4510785,84616.0,84615.0,0.00017732]
[1742007230307,0.2910785,84616.0,84615.0,0.00017732]
[1742007230492,0.1820785,84616.0,84615.0,0.00017732]
[1742007230804,0.4320785,84616.0,84615.0,0.00017732]
[1742007232596,0.3691785,84616.0,84615.0,0.11835722]
[1742007232902,0.2191785,84616.0,84615.0,0.11835722]
[1742007233093,0.1191785,84616.0,84615.0,0.11835722]
[1742007233291,0.3591785,84616.0,84615.0,0.18365722]
[1742007233492,0.1191785,84616.0,84615.0,0.18365722]
[1742007237003,0.2384585,84616.0,84615.0,0.18365722]
[1742007240295,0.1191785,84616.0,84615.0,0.18365722]
[1742007240607,0.3491785,84616.0,84615.0,0.06547732]
[1742007240908,0.1815785,84616.0,84615.0,0.18365722]
[1742007241101,0.2191785,84616.0,84615.0,0.18365722]
[1742007241303,0.1191785,84616.0,84615.0,0.18365722]
[1742007241904,0.3891785,84616.0,84615.0,0.18365722]
[1742007242099,0.1191785,84616.0,84615.0,0.18365722]
[1742007246304,0.032,84628.0,84622.0,0.1181702]
[1742007246608,0.11828415,84623.0,84622.0,0.1181702]
[1742007247314,0.11828415,84623.0,84622.0,0.1818702]
[1742007248310,0.00011535,84623.0,84622.0,0.1818702]
[1742007248511,0.1181374,84646.0,84630.0,0.118159]
[1742007248702,0.57125144,84649.0,84630.0,0.118159]
[1742007248703,0.3608,84649.0,84646.0,0.0590677]
[1742007248902,0.3608,84649.0,84638.0,0.0590739]
[1742007248903,0.1772171,84643.0,84642.0,0.177207]
[1742007249105,0.119,84657.0,84642.0,0.177207]
[1742007249106,0.89977254,84666.0,84651.0,0.0590621]
[1742007249306,0.06142694,84666.0,84663.0,0.0590558]
[1742007249605,0.1181157,84661.0,84660.0,0.3608]
[1742007249807,0.0590557,84664.0,84653.0,0.3608]
[1742007249808,0.1181255,84654.0,84653.0,0.3608]
[1742007250214,0.1181255,84654.0,84653.0,0.4789269]
[1742007250711,0.1181255,84654.0,84653.0,0.7289269]
[1742007251008,0.1181255,84654.0,84653.0,0.7089269]
[1742007251207,0.1181255,84654.0,84653.0,1.2076122]
[1742007251406,0.1181255,84654.0,84653.0,0.7176122]
[1742007251617,0.1181255,84654.0,84653.0,1.5276122]
[1742007251817,0.059058,84661.0,84657.0,0.0590593]
[1742007252007,0.059058,84661.0,84660.0,0.4789171]
[1742007252207,0.059058,84661.0,84660.0,0.9389171]
[1742007252402,0.059058,84661.0,84660.0,0.7089171]
[1742007252712,0.059058,84661.0,84660.0,0.9789171]
[1742007252912,0.059058,84661.0,84660.0,0.9689171]
[1742007253312,0.059058,84661.0,84660.0,1.2189171]
[1742007253509,0.1181126,84664.0,84663.0,0.1181101]
[1742007253708,0.1181115,84664.0,84663.0,0.8881101]
[1742007254408,0.00177253,84666.0,84665.0,0.1181101]
[1742007254714,0.00177253,84666.0,84665.0,0.3681101]
[1742007255313,0.11988133,84666.0,84665.0,0.3681101]
[1742007255516,0.11988133,84666.0,84665.0,0.1181101]
[1742007255818,0.11988133,84666.0,84663.0,0.1181101]
[1742007255819,0.1181129,84664.0,84663.0,0.1181128]
[1742007256920,0.1181157,84661.0,84660.0,0.4789148]
[1742007257310,0.1181157,84661.0,84660.0,0.7489148]
[1742007257506,0.1181157,84661.0,84660.0,0.5970299]
[1742007258810,0.1181157,84661.0,84660.0,0.8270299]
[1742007259010,0.1181157,84661.0,84660.0,0.5970299]
[1742007259918,0.1181157,84661.0,84660.0,0.8670299]
[1742007260116,0.1181157,84661.0,84660.0,0.5970299]
[1742007264109,0.1181157,84661.0,84660.0,0.3608]
[1742007264408,0.1492157,84661.0,84660.0,0.3608]
[1742007265120,0.1492157,84661.0,84660.0,0.4789171]
[1742007265515,0.1492157,84661.0,84660.0,0.3608]
[1742007265716,0.2592157,84661.0,84660.0,0.3608]
[1742007266021,0.1492157,84661.0,84660.0,0.3608]
[1742007266323,0.1492157,84661.0,84653.0,0.3694853]
[1742007266324,0.1181255,84654.0,84653.0,0.3694853]
[1742007266622,0.1181269,84653.0,84652.0,0.00017721]
[1742007266923,0.1481269,84653.0,84652.0,0.00017721]
[1742007267534,0.1481269,84653.0,84652.0,0.03267721]
[1742007268014,0.1481269,84653.0,84652.0,0.03367721]
[1742007268211,0.1481269,84653.0,84652.0,0.15180551]
[1742007268517,0.1481269,84653.0,84652.0,0.18240551]
[1742007269114,0.1481269,84653.0,84652.0,0.18340551]
[1742007269516,0.1481269,84653.0,84652.0,0.06527721]
[1742007270023,0.1481269,84653.0,84652.0,0.00017721]
[1742007270829,0.4081269,84653.0,84652.0,0.00017721]
[1742007271124,0.1181395,84644.0,84642.0,0.1181409]
[1742007271325,0.1181395,84644.0,84643.0,0.16753894]
[1742007271529,0.0902689,84646.0,84645.0,0.1181381]
[1742007271713,0.0312,84646.0,84645.0,0.1181381]
[1742007272119,0.00017645,84654.0,84647.0,0.0590676]
[1742007272316,0.00017645,84654.0,84653.0,0.4789269]
[1742007273032,0.11830195,84654.0,84653.0,0.5098269]
[1742007273926,0.00017645,84654.0,84653.0,0.5098269]
[1742007275728,0.03237645,84654.0,84653.0,0.7398269]
[1742007275924,0.00017645,84654.0,84653.0,0.7698269]
[1742007276120,0.00017645,84654.0,84653.0,0.7598269]
[1742007276321,0.11830195,84654.0,84653.0,0.5098269]
[1742007277118,0.14910195,84654.0,84653.0,0.5098269]
[1742007277737,0.14910195,84654.0,84653.0,0.7498269]
[1742007277928,0.14910195,84654.0,84653.0,0.5098269]
[1742007285727,0.1181269,84653.0,84652.0,0.1181275]
[1742007285937,0.1500269,84653.0,84652.0,0.1181275]
[1742007286125,0.0590652,84651.0,84649.0,0.1181323]
[1742007286320,0.1772001,84650.0,84649.0,0.1484323]
[1742007286639,0.2393001,84650.0,84649.0,0.0303]
[1742007287431,0.1181353,84647.0,84646.0,0.1181365]
[1742007287634,0.1181395,84644.0,84643.0,0.49743764]
[1742007287937,0.1181395,84644.0,84643.0,0.49566565]
[1742007288637,0.1181395,84644.0,84643.0,0.52576565]
[1742007288933,0.1181395,84644.0,84643.0,0.55606565]
[1742007289336,0.1490395,84644.0,84643.0,0.55606565]
[1742007289835,0.1490395,84644.0,84643.0,0.0301]
[1742007290528,0.4290395,84644.0,84643.0,0.0301]
[1742007290724,0.2590395,84644.0,84643.0,0.0301]
[1742007291039,0.1490395,84644.0,84643.0,0.0301]
[1742007291430,0.1181436,84641.0,84640.0,0.3608]
[1742007291635,0.1181674,84624.0,84621.0,0.00177265]
[1742007291828,0.2382074,84624.0,84623.0,0.02487153]
[1742007292027,0.2382074,84624.0,84608.0,0.42238658]
[1742007292028,0.40004,84624.0,84607.0,0.28113747]
[1742007292339,0.1181869,84611.0,84610.0,0.1772771]
[1742007292538,0.2383869,84611.0,84610.0,0.1228927]
[1742007293432,0.2363869,84611.0,84610.0,0.1228927]
[1742007295439,0.2383869,84611.0,84610.0,0.1228927]
[1742007295839,0.1181869,84611.0,84610.0,0.1228927]
[1742007296040,0.2361069,84611.0,84610.0,0.1228927]
[1742007296241,0.2371069,84611.0,84610.0,0.1228927]
[1742007296937,0.2381069,84611.0,84610.0,0.1228927]
[1742007297344,0.2401055,84611.0,84610.0,0.1228927]
[1742007298239,0.2411055,84611.0,84610.0,0.1228927]
[1742007298734,0.2401055,84611.0,84610.0,0.1228927]
[1742007299036,0.12192,84611.0,84610.0,0.1228927]
[1742007299240,0.2401055,84611.0,84610.0,0.1228927]
[1742007299845,0.2391055,84611.0,84610.0,0.1228927]
[1742007301148,0.2391455,84611.0,84610.0,0.4028927]
[1742007301335,0.2391455,84611.0,84610.0,0.1228927]
[1742007301840,0.2381455,84611.0,84610.0,0.1228927]
[1742007303150,0.2381455,84611.0,84610.0,0.3728927]
[1742007303338,0.2381455,84611.0,84610.0,0.1228927]
[1742007303741,0.2391455,84611.0,84610.0,0.1228927]
[1742007311555,0.2391455,84611.0,84610.0,0.0638]
[1742007311748,0.3007455,84611.0,84610.0,0.0638]
[1742007312348,0.3007455,84611.0,84610.0,0.1819869]
[1742007312544,0.1807855,84611.0,84610.0,0.1819869]
[1742007312752,0.3000255,84611.0,84610.0,0.1819869]
[1742007313154,0.3000255,84611.0,84610.0,0.0638]
[1742007314153,0.5700255,84611.0,84610.0,0.0638]
[1742007314358,0.4100255,84611.0,84610.0,0.0638]
[1742007314558,0.4100255,84611.0,84610.0,0.0315]
[1742007314754,0.4147255,84611.0,84610.0,0.0315]
[1742007315263,0.1181939,84605.0,84604.0,0.37708177]
[1742007315568,0.1181939,84605.0,84604.0,0.3608]
[1742007316158,0.1797939,84605.0,84604.0,0.3608]
[1742007316366,0.3797939,84605.0,84604.0,0.395]
[1742007316764,0.1797939,84605.0,84604.0,0.395]
[1742007316966,0.1797939,84605.0,84604.0,0.0342]
[1742007317161,0.1797939,84605.0,84604.0,0.0352]
[1742007318375,0.1797939,84605.0,84604.0,0.0342]
[1742007318774,0.1797939,84605.0,84604.0,0.0332]
[1742007319270,0.8005939,84605.0,84604.0,0.0332]
[1742007319679,0.1181967,84603.0,84600.0,0.0324]
[1742007319882,0.3581967,84603.0,84600.0,0.0639]
[1742007320179,0.4234967,84603.0,84600.0,0.0639]
[1742007320369,0.059099,84602.0,84599.0,0.0327]
[1742007320679,0.1182009,84600.0,84599.0,0.0327]
[1742007320881,0.3382009,84600.0,84599.0,0.0327]
[1742007321070,0.4035009,84600.0,84599.0,0.0327]
[1742007321675,0.4035009,84600.0,84599.0,0.0337]
[1742007322277,0.5221809,84600.0,84599.0,0.0337]
[1742007322881,0.5221809,84600.0,84599.0,0.0347]
[1742007323178,0.5221809,84600.0,84599.0,0.0337]
[1742007323482,0.3021809,84600.0,84599.0,0.0347]
[1742007325578,0.5521809,84600.0,84599.0,0.0347]
[1742007325889,0.3021809,84600.0,84599.0,0.0347]
[1742007329775,0.3921809,84600.0,84599.0,0.0347]
[1742007330079,0.3021809,84600.0,84599.0,0.0347]
[1742007330270,0.5421809,84600.0,84599.0,0.0347]
[1742007330475,0.4121809,84600.0,84599.0,0.0347]